Cogmind - Beta 10.2 @@@ ROGUE MODE // 2020.12.20 @ 11:50:19 Player: Buffy Result: Destroyed by S-43 Plague with Heavy Machine Gun Performance ------------- Evolutions (9) 4500 Regions Visited (13) 2600 Robots Destroyed (189) 945 Value Destroyed (8965) 8965 Prototype IDs (48) 960 Alien Tech Used (0) 0 Bonus (1079) 1079 TOTAL SCORE: 19049 Bonus ------- High Alert Combat Kills 781 Follower Combat Kills 37 Aligned with FarCom 300 Friendly Fire -39 Cogmind --------- Core Integrity 0/1600 Matter 299/300 Energy 72/100 System Corruption 9% Temperature Cool (0) Movement Core (50) Location -1/Access Parts ------- > --- POWER (3) -------- (None) > --- PROPULSION (5) --- (None) > --- UTILITY (13) ----- (None) > --- WEAPON (4) ------- (None) > --- INVENTORY (4) ---- (None) Peak State ------------ > --- POWER ------------ Quantum Reactor Light Quantum Reactor > --- PROPULSION ------- Myomer Leg Myomer Leg Advanced Myomer Leg Advanced Myomer Leg > --- UTILITY ---------- Advanced Heat Sink Advanced Heat Sink Advanced Heat Sink Improved Coolant Injector High-capacity Storage Unit Superbattery Advanced Targeting Computer Advanced Core Analyzer Advanced Weapon Cycler Improved Stasis Canceller Advanced Transmission Jammer Hacking Suite Advanced Integration Mediator > --- WEAPON ----------- Phase Gun Enhanced Nova Cannon Railgun Compact Mass Driver > --- INVENTORY -------- Micro Fission Core Myomer Leg Myomer Leg Myomer Leg Gamma Rifle Heavy Laser Phase Gun Gamma Bomb Array Smartbomb Launcher Smartbomb Launcher [Rating: 165] Favorites ----------- Power Micro Fission Core Engine Ion Engine Power Core Micro Fission Core Reactor Light Quantum Reactor Propulsion Aluminum Leg Treads Improved Heavy Treads Leg Aluminum Leg Wheel Armored Huge Wheel Utility High-capacity Storage Unit Device Advanced Transmission Jammer Storage High-capacity Storage Unit Processor Advanced Targeting Computer Hackware System Shield Protection Hardened Medium Armor Plating Weapon Gamma Rifle Energy Gun Gamma Rifle Energy Cannon Nova Cannon Ballistic Gun KE Penetrator Ballistic Cannon Compact Mass Driver Launcher Smartbomb Launcher Special Weapon Stasis Projector Build | -11 -10 -10 -10 -9 -8 -8 -7 -6 -5 -4 -3 -2 -1 ------- Run | Scr Mat Min Exi Min Mat Sto Fac Fac Fac Fac Res Res Acc Slots Evolved 18 | . . . . . 4 . 2 2 2 2 2 2 2 Power 2 | . . . . . . . . 1 . . . . 1 Propulsion 3 | . . . . . 1 . 1 . . . . . 1 Utility 11 | . . . . . 2 . 1 1 2 2 1 2 . Weapon 2 | . . . . . 1 . . . . . 1 . . Parts Attached 297 | 6 13 . 2 5 24 28 17 8 21 31 63 60 19 Power 33 | 1 1 . . 1 1 2 . 3 3 3 8 7 3 Engine 6 | 1 1 . . 1 . . . 1 . . . . 2 Core 16 | . . . . . 1 2 . 2 3 3 3 2 . Reactor 11 | . . . . . . . . . . . 5 5 1 Propulsion 50 | 2 1 . . 2 5 7 4 2 . 2 4 13 8 Treads 8 | . . . . . . . . . . 2 4 2 . Leg 36 | 2 1 . . 2 5 7 3 2 . . . 11 3 Wheel 6 | . . . . . . . 1 . . . . . 5 Hover . | . . . . . . . . . . . . . . Flight . | . . . . . . . . . . . . . . Utility 87 | 1 6 . 2 1 6 5 5 2 6 16 17 16 4 Device 53 | . 4 . . 1 3 3 3 1 3 9 9 14 3 Storage 10 | 1 2 . 2 . . . . . 1 . 2 1 1 Processor 9 | . . . . . 2 . 1 . 1 1 4 . . Hackware 3 | . . . . . . . . 1 . 1 . 1 . Protection 12 | . . . . . 1 2 1 . 1 5 2 . . Artifact . | . . . . . . . . . . . . . . Weapon 127 | 2 5 . . 1 12 14 8 1 12 10 34 24 4 Energy Gun 61 | 1 3 . . 1 6 6 4 1 6 3 16 12 2 Energy Cannon 13 | . . . . . . 2 1 . 2 2 4 1 1 Ballistic Gun 30 | 1 2 . . . 4 3 2 . 2 3 10 3 . Ballistic Cannon 5 | . . . . . . . . . . . 2 3 . Launcher 17 | . . . . . 2 3 1 . 2 2 2 5 . Special Weapon 1 | . . . . . . . . . . . . . 1 Impact Weapon . | . . . . . . . . . . . . . . Slashing Weapon . | . . . . . . . . . . . . . . Piercing Weapon . | . . . . . . . . . . . . . . Special Melee Weapon . | . . . . . . . . . . . . . . Unidentified Prototypes 15 | . . . . 1 3 3 1 . . 1 3 3 . Parts Lost 88 | . 2 . . 1 1 1 . 1 3 5 14 46 14 Power 6 | . . . . . . . . . . . . 4 2 Propulsion 18 | . . . . . . . . . . . . 10 8 Utility 26 | . . . . . . 1 . 1 1 4 4 14 1 Weapon 38 | . 2 . . 1 1 . . . 2 1 10 18 3 Highest Loss Streak 26 | . 1 . . 1 1 1 . 1 1 3 5 26 8 Average Slot Usage (%) 87 | . 99 100 90 100 96 99 92 90 89 82 86 83 10 Engine 2 | . 14 14 14 14 3 . . 2 3 . . . 1 Core 5 | . . . . . 5 9 7 10 7 10 4 3 . Reactor 1 | . . . . . . . . . . . 3 4 . Treads 3 | . . . . . . . . . . 7 8 4 . Leg 12 | . 28 28 28 28 26 27 17 13 11 1 . 6 2 Wheel 1 | . . . . . . . 5 6 5 1 . . 2 Device 13 | . 6 . . 12 9 8 10 8 19 15 20 25 1 Storage 8 | . 20 28 19 15 9 9 7 6 5 5 6 7 . Processor 9 | . . . . . 6 9 7 6 8 13 19 10 . Protection 4 | . . . . . 8 8 11 9 4 8 1 1 . Energy Gun 10 | . 21 14 14 14 16 12 14 13 8 4 9 5 . Energy Cannon 1 | . . . . . . 4 . . . 1 1 2 . Ballistic Gun 7 | . 6 14 14 14 10 9 7 6 6 9 5 3 . Naked Turns 156 | . . . . . . . . . . . . 29 127 Heaviest Build 126 | 13 25 25 43 43 60 61 68 78 95 114 126 124 51 Greatest Support 150 | 20 20 20 20 20 30 40 40 28 28 150 150 145 64 Greatest Overweight (x) 38 | . 1 1 2 2 1 1 3 2 3 3 1 38 3 Average Overweight (x) . | . . 1 1 2 1 1 2 2 2 . . . . Largest Inventory Capacity 20 | 6 12 12 16 12 12 12 12 12 12 12 12 20 8 Average Capacity 11 | 5 8 12 12 12 12 12 12 12 12 12 12 11 4 Most Carried 12 | 4 12 12 12 12 12 12 12 12 12 12 12 12 4 Average Carried 10 | 2 7 11 11 11 11 11 11 11 11 11 11 9 1 Final Capacity 12 | 6 12 12 12 12 12 12 12 12 12 12 12 4 4 Final Carried 12 | 4 12 12 12 12 12 12 12 12 11 12 12 . . Class Distribution -------------------- 33% | Scavenger-Gunner 20% | Scavenger-Skirmisher 16% | Mutant 9% | Tank 6% | Scavenger-Mutant 6% | Gunner 6% | Skirmisher Dominant Class ---------------- Mutant | -10/Materials Mutant | -10/Mines Mutant | -10/Exiles Skirmisher | -9/Mines Scavenger-Skirmisher | -8/Materials Scavenger-Skirmisher | -8/Storage Tank | -7/Factory Tank | -6/Factory Gunner | -5/Factory Scavenger-Gunner | -4/Factory Scavenger-Gunner | -3/Research Scavenger-Gunner | -2/Research Mutant | -1/Access Resources | -11 -10 -10 -10 -9 -8 -8 -7 -6 -5 -4 -3 -2 -1 ----------- Run | Scr Mat Min Exi Min Mat Sto Fac Fac Fac Fac Res Res Acc Matter Collected 5210 | 184 252 . 10 98 365 428 182 148 403 452 1485 831 372 Remotely 73 | . . . . . . . . . . . . . 73 Salvage Created 9767 | 63 338 . . 142 273 1316 325 141 673 995 3093 1995 413 Parts 495 | 1 25 . . 9 24 55 17 6 31 59 181 74 13 Haulers Intercepted 2 | . . . . . . 1 . . . . 1 . . Recyclers Shooed 12 | . . . . . 1 1 . . . 1 7 . 2 Parts Field Recycled . | . . . . . . . . . . . . . . Retrieved Matter . | . . . . . . . . . . . . . . Parts Self-Destructed . | . . . . . . . . . . . . . . Prevented . | . . . . . . . . . . . . . . Kills | -11 -10 -10 -10 -9 -8 -8 -7 -6 -5 -4 -3 -2 -1 ------- Run | Scr Mat Min Exi Min Mat Sto Fac Fac Fac Fac Res Res Acc Combat Hostiles Destroyed 153 | . 9 . . 4 10 21 7 2 12 14 42 31 1 Guns 75 | . 9 . . 4 4 12 5 1 6 6 21 6 1 Cannons 23 | . . . . . . . . . . 3 11 9 . AOE 41 | . . . . . 6 8 2 . 6 4 6 9 . Classes Destroyed 15 | 1 4 . . . 2 2 1 1 1 1 1 1 . Worker 11 | . . . . . 4 . 1 . 3 3 . . . Builder 7 | . 1 . . . . . . . 2 . 3 1 . Hauler 2 | . . . . . . 1 . . . . 1 . . Recycler 12 | 1 . . . . . 5 . . . 1 2 . 3 Mechanic 1 | . . . . . . . . . . . . 1 . Operator 1 | . . . . . . . . . . 1 . . . Watcher 2 | . 1 . . . . . . . . 1 . . . Swarmer 38 | . 4 . . . 4 3 3 . 5 . 13 5 1 Grunt 42 | . 5 . . 4 4 12 1 . 2 2 3 9 . Brawler 1 | . . . . . . . . . 1 . . . . Duelist 4 | . . . . . . 1 . . . . . 3 . Sentry 24 | . . . . . 2 5 2 1 . 2 6 6 . Hunter 12 | . . . . . . . . 1 . 6 4 1 . Programmer 31 | . . . . . . . 1 . 4 4 15 7 . Behemoth 1 | . . . . . . . . . . . 1 . . Best Kill Streak 8 | 1 5 . . 3 6 7 3 1 8 7 5 6 2 Combat Bots Only 7 | . 4 . . 3 4 7 3 1 5 3 4 6 1 Max Kills in Single Turn 5 | 1 1 . . 1 5 5 2 1 4 2 4 4 1 Gunslinging 1 | . . . . . . 1 . . . . . . . Exploded 5 | . . . . . 4 5 1 . 2 1 3 4 . Melee . | . . . . . . . . . . . . . . Uniques/NPCs Destroyed . | . . . . . . . . . . . . . . Combat | -11 -10 -10 -10 -9 -8 -8 -7 -6 -5 -4 -3 -2 -1 -------- Run | Scr Mat Min Exi Min Mat Sto Fac Fac Fac Fac Res Res Acc Damage Taken 19820 | . 372 . . 265 340 829 391 318 645 1552 4375 6889 3844 Core 3273 | . 87 . . 67 51 86 22 27 94 162 244 813 1620 Absorbed by Shields 1460 | . . . . . . . . . . . 895 565 . Reduced by Siege Mode 40 | . . . . . . . . . . . 40 . . Core Remaining (%) 78 | 100 . . . 38 . 75 96 96 90 85 81 43 . Volleys Fired 419 | 7 30 . . 17 19 43 12 8 34 41 111 73 24 Largest 4 | 1 2 . . 2 3 3 3 3 3 3 4 4 2 Hottest 338 | 50 90 . . 70 149 151 143 168 194 225 338 323 94 Shots Fired 1046 | 7 60 . . 34 45 107 32 24 79 96 362 175 25 Gun 811 | 7 60 . . 34 40 95 30 24 71 76 282 88 4 Cannon 175 | . . . . . . 6 . . 2 11 77 60 19 Launcher 58 | . . . . . 5 6 2 . 6 9 3 27 . Special 2 | . . . . . . . . . . . . . 2 Kinetic 383 | . 17 . . 17 17 41 10 8 34 51 120 68 . Thermal 336 | 7 30 . . 17 18 43 10 8 30 33 81 55 4 Explosive 26 | . . . . . 5 . . . . 4 3 14 . Electromagnetic 299 | . 13 . . . 5 23 12 8 15 8 158 38 19 Robot Hit Streak 40 | 4 6 . . 11 8 19 10 12 15 13 40 19 11 Robot Miss Streak 7 | 2 3 . . 2 3 2 7 3 6 2 3 3 1 Penetration Max 1 | . . . . . . . . . . 1 1 1 . Secondary Targets 3 | . . . . . 1 2 . . . . . . . Max Gunslinging Chain 1 | . . . . . 1 1 . . . . . . . Shots Hit Robots 738 | 5 39 . . 21 28 72 23 20 51 66 266 127 20 Core Hits 444 | 2 16 . . 7 24 43 21 9 26 46 125 113 12 Critical Hits 57 | . . . . . . . . 1 4 9 32 9 2 Critical Kills 12 | . . . . . . . . . . 2 7 3 . Critical Parts Destroyed 35 | . . . . . . . . 1 4 7 18 4 1 Melee Attacks . | . . . . . . . . . . . . . . Impact . | . . . . . . . . . . . . . . Slashing . | . . . . . . . . . . . . . . Piercing . | . . . . . . . . . . . . . . Sneak Attacks . | . . . . . . . . . . . . . . Combat Hostiles . | . . . . . . . . . . . . . . Follow-up Attacks . | . . . . . . . . . . . . . . Damage Inflicted 25052 | 64 482 . . 257 1116 2366 651 403 1617 3604 7178 6880 434 Guns 11243 | 64 482 . . 257 391 1120 517 403 1091 1172 4190 1474 82 Cannons 4578 | . . . . . . 50 . . . 334 1907 1949 338 Explosions 9203 | . . . . . 725 1196 134 . 526 2098 1067 3457 . Melee . | . . . . . . . . . . . . . . Ramming 28 | . . . . . . . . . . . 14 . 14 Kinetic 5575 | . 121 . . 107 120 360 196 83 546 712 1777 1553 . Thermal 7471 | 64 223 . . 150 210 861 193 123 444 1320 2127 1674 82 Explosive 4445 | . . . . . 725 214 . . . 909 880 1717 . Electromagnetic 7533 | . 138 . . . 61 931 262 197 627 663 2380 1936 338 Impact . | . . . . . . . . . . . . . . Slashing . | . . . . . . . . . . . . . . Piercing . | . . . . . . . . . . . . . . Highest Corruption 22 | . . . . . . . 3 . 6 9 22 13 9 Average Corruption 6 | . . . . . . . 2 . 2 4 9 8 7 Corruption Purged . | . . . . . . . . . . . . . . Effects 198 | . . . . . . . 11 . 13 18 113 37 6 Message Errors 35 | . . . . . . . 3 . 4 7 15 4 2 Matter Fused 30 | . . . . . . . 5 . 1 3 14 6 1 Heat Flow Errors 19 | . . . . . . . 2 . 1 5 8 2 1 Energy Discharges 16 | . . . . . . . 1 . 1 . 11 2 1 Parts Rejected 2 | . . . . . . . . . . . 1 1 . Data Loss (minor) 13 | . . . . . . . . . 1 1 8 2 1 Data Loss (major) 3 | . . . . . . . . . 1 . 2 . . Misfires 2 | . . . . . . . . . 1 . 1 . . Alerts 2 | . . . . . . . . . . . 2 . . Misdirections 11 | . . . . . . . . . . . 8 3 . Targeting Errors 51 | . . . . . . . . . 3 2 33 13 . Weapon Failures 14 | . . . . . . . . . . . 10 4 . Overload Shots 5 | . . . . . . . . . . 1 4 . . Overflow Damage 462 | . . . . . . 87 . . . 32 109 234 . Projectiles 218 | . . . . . . . . . . . 10 208 . Explosions 244 | . . . . . . 87 . . . 32 99 26 . Melee . | . . . . . . . . . . . . . . Knockbacks 14 | . . . . . . . . . . . 9 5 . Impact 1 | . . . . . . . . . . . 1 . . Kinetic 13 | . . . . . . . . . . . 8 5 . Secondary . | . . . . . . . . . . . . . . Self-Inflicted Damage 460 | . . . . . 104 49 . . 18 . . 283 6 Shots 29 | . . . . . 2 1 . . 1 . . 25 . Rammed 4 | . . . . . . . . . . . 1 . 3 Targets Rammed 4 | . . . . . . . . . . . 1 . 3 Kicked . | . . . . . . . . . . . . . . Crushed . | . . . . . . . . . . . . . . Highest Temperature 353 | 40 90 . . 204 233 306 126 150 353 289 264 198 196 Average Temperature 84 | 19 27 . . 72 78 92 52 71 137 96 87 84 89 Received Heat Transfer 1646 | . 123 . . 126 90 288 57 12 27 39 248 501 135 Effects 6 | . . . . . . 3 . . 1 . 2 . . Shutdowns 1 | . . . . . . . . . 1 . . . . Interference 5 | . . . . . . 3 . . . . 2 . . Siege Activations 1 | . . . . . . . . . . . 1 . . Total Turns 18 | . . . . . . . . . . . 18 . . Longest Duration 18 | . . . . . . . . . . . 18 . . Robots Corrupted 16 | . . . . . . 1 . 1 1 1 4 7 1 Combat Hostiles 14 | . . . . . . 1 . 1 . 1 4 7 . Parts Fried 55 | . . . . . . 5 1 3 2 4 20 16 4 Impact Corruptions . | . . . . . . . . . . . . . . Robots Melted . | . . . . . . . . . . . . . . Combat Hostiles . | . . . . . . . . . . . . . . Parts Melted 16 | . 4 . . . 1 1 . . . . 9 . 1 Heat Transferred 9850 | 185 629 . . 407 481 1671 296 185 682 1425 2172 1606 111 Parts Sabotaged . | . . . . . . . . . . . . . . Parts Stolen . | . . . . . . . . . . . . . . Parts Stripped . | . . . . . . . . . . . . . . Power Chain Reactions 9 | . . . . . . 4 1 . 1 1 1 1 . Missiles Intercepted . | . . . . . . . . . . . . . . Alert | -11 -10 -10 -10 -9 -8 -8 -7 -6 -5 -4 -3 -2 -1 ------- Run | Scr Mat Min Exi Min Mat Sto Fac Fac Fac Fac Res Res Acc Peak Influence 818 | 5 171 54 . 82 296 472 290 89 179 406 667 818 578 Initial 428 | . 3 54 . . 31 5 214 . . 8 155 375 428 Average 187 | . 70 54 . 33 124 112 140 40 48 95 268 450 454 Maximum Alert Level 3 | . . . . . 1 2 1 . . 2 2 3 2 Low Security (%) 67 | 100 100 100 . 100 96 87 67 100 100 90 49 . . Level 1 13 | . . . . . 3 3 32 . . 8 18 34 8 Level 2 18 | . . . . . . 9 . . . 1 32 54 91 Level 3 1 | . . . . . . . . . . . . 10 . Level 4 . | . . . . . . . . . . . . . . Level 5 . | . . . . . . . . . . . . . . High Security . | . . . . . . . . . . . . . . Max Security . | . . . . . . . . . . . . . . Squads Dispatched 40 | . 1 . . . . 4 2 1 1 8 9 12 2 Investigation 2 | . . . . . . 1 1 . . . . . . Extermination 12 | . . . . . . . 1 . 1 2 5 3 . Reinforcement 15 | . 1 . . . . 1 . 1 . 6 3 2 1 Assault 5 | . . . . . . 2 . . . . 1 1 1 Garrison 6 | . . . . . . . . . . . . 6 . Intercept . | . . . . . . . . . . . . . . Construction Impeded 3 | . . . . . . . . . . 1 2 . . Haulers Reinforced 2 | . . . . . . . . . . 1 . 1 . Stealth | -11 -10 -10 -10 -9 -8 -8 -7 -6 -5 -4 -3 -2 -1 --------- Run | Scr Mat Min Exi Min Mat Sto Fac Fac Fac Fac Res Res Acc Distress Signals 22 | . 4 . . . 3 3 . . . 4 4 1 3 Communications Jammed 24 | . . . . . . . . . 2 . 14 8 . Distress Signals 17 | . . . . . . . . . 2 . 11 4 . Times Spotted 268 | . 18 . . 4 26 31 9 3 14 32 54 45 32 Peak Tracking Total 16 | . 6 . . 3 5 10 3 1 6 6 6 7 16 Tactical Retreats 17 | . 2 . . . . 6 . . 2 1 . 3 3 Traps | -11 -10 -10 -10 -9 -8 -8 -7 -6 -5 -4 -3 -2 -1 ------- Run | Scr Mat Min Exi Min Mat Sto Fac Fac Fac Fac Res Res Acc Traps Triggered 16 | . 1 . . 1 . 4 . . 1 6 1 1 1 Indirectly 3 | . . . . . . 3 . . . . . . . Trap Hack Attempts . | . . . . . . . . . . . . . . Triggered . | . . . . . . . . . . . . . . Disarmed . | . . . . . . . . . . . . . . Reprogrammed . | . . . . . . . . . . . . . . Reused . | . . . . . . . . . . . . . . Traps Extracted . | . . . . . . . . . . . . . . Installed . | . . . . . . . . . . . . . . Triggered . | . . . . . . . . . . . . . . Exploded 1 | . . . 1 . . . . . . . . . . Machines | -11 -10 -10 -10 -9 -8 -8 -7 -6 -5 -4 -3 -2 -1 ---------- Run | Scr Mat Min Exi Min Mat Sto Fac Fac Fac Fac Res Res Acc Machines Disabled 16 | . . . . . . 5 . . . 9 1 1 . Max in Single Turn 5 | . . . . . . 2 . . . 5 1 1 . Garrison Access 3 | . . . . . . . 1 . . . 1 1 . Machines Sabotaged . | . . . . . . . . . . . . . . Garrisons Compromised . | . . . . . . . . . . . . . . Overloaded Fab Kills . | . . . . . . . . . . . . . . Fab Network Shutdowns . | . . . . . . . . . . . . . . Hacking | -11 -10 -10 -10 -9 -8 -8 -7 -6 -5 -4 -3 -2 -1 --------- Run | Scr Mat Min Exi Min Mat Sto Fac Fac Fac Fac Res Res Acc Machines Accessed 58 | . 5 1 2 2 7 8 11 2 5 3 6 5 1 Terminals 41 | . 4 . . 1 6 7 9 2 4 1 4 3 . Fabricators 1 | . . . . . . . . . . 1 . . . Repair Stations 1 | . . . . . 1 . . . . . . . . Recycling Units 3 | . 1 . . . . 1 . . . 1 . . . Scanalyzers 2 | . . . . . . . 1 . 1 . . . . Garrison Access 6 | . . . . . . . 1 . . . 2 2 1 Total Hacks 145 | . 19 1 2 3 24 19 28 9 12 4 13 10 1 Successful 70 | . 10 1 2 3 18 9 8 4 5 1 5 4 . Failed 75 | . 9 . . . 6 10 20 5 7 3 8 6 1 Catastrophic 13 | . . . . . 1 2 2 . 1 2 1 4 . Database Lockouts . | . . . . . . . . . . . . . . Manual 73 | . 16 . 1 2 12 11 10 8 7 1 2 3 . Terminals 119 | . 17 . . 2 21 18 25 9 10 1 9 7 . Fabricators 2 | . . . . . . . . . . 2 . . . Repair Stations 3 | . . . . . 3 . . . . . . . . Recycling Units 4 | . 2 . . . . 1 . . . 1 . . . Scanalyzers 3 | . . . . . . . 1 . 2 . . . . Garrison Access 10 | . . . . . . . 2 . . . 4 3 1 Terminal Hacks 46 | . 6 1 2 3 12 7 5 2 3 . 3 2 . Record 1 | . . . 1 . . . . . . . . . . Part Schematic 1 | . . . . 1 . . . . . . . . . Robot Analysis 6 | . 2 . . . 2 . 2 . . . . . . Prototype ID Bank 5 | . 1 . . . 2 . 1 . 1 . . . . Open Door 4 | . . 1 . 1 . 2 . . . . . . . Level Access Points 1 | . . . . . . 1 . . . . . . . Branch Access Points 4 | . . . . . 1 . 1 1 1 . . . . Emergency Access Points 1 | . . . . . 1 . . . . . . . . Terminal Index 1 | . . . . . . . . . . . . 1 . Alert Level 1 | . . . . . . . . . . . 1 . . Unreport Threat 5 | . . . . . 1 1 . . 1 . 1 1 . Locate Traps 2 | . . . . . 1 1 . . . . . . . Dispatch Records 1 | . . . . . . 1 . . . . . . . Surveillance Status 1 | . . . . . 1 . . . . . . . . Hauler Manifests 2 | . 1 . . . 1 . . . . . . . . Registered Components 1 | . . . . . 1 . . . . . . . . Registered Prototypes 1 | . . . . . 1 . . . . . . . . Zone Layout 7 | . 2 . . 1 . 1 1 1 . . 1 . . EX-Prototype ID Bank 1 | . . . 1 . . . . . . . . . . Fabricator Hacks . | . . . . . . . . . . . . . . Repair Station Hacks 2 | . . . . . 2 . . . . . . . . Scan Component 1 | . . . . . 1 . . . . . . . . Repair 1 | . . . . . 1 . . . . . . . . Recycling Unit Hacks 3 | . 1 . . . . 1 . . . 1 . . . Report Inventory 2 | . 1 . . . . . . . . 1 . . . Retrieve Components 1 | . . . . . . 1 . . . . . . . Scanalyzer . | . . . . . . . . . . . . . . Garrison Access Hacks 3 | . . . . . . . 1 . . . 1 1 . Seal Access 3 | . . . . . . . 1 . . . 1 1 . Unauthorized Hacks 16 | . 3 . . . 4 1 2 2 2 . 1 1 . Terminals 14 | . 2 . . . 3 1 2 2 2 . 1 1 . Assimilate 1 | . . . . . . . . . . . . 1 . Botnet 13 | . 2 . . . 3 1 2 2 2 . 1 . . Fabricators . | . . . . . . . . . . . . . . Repair Stations 1 | . . . . . 1 . . . . . . . . Mechanics 1 | . . . . . 1 . . . . . . . . Recycling Units 1 | . 1 . . . . . . . . . . . . Monitor 1 | . 1 . . . . . . . . . . . . Scanalyzers . | . . . . . . . . . . . . . . Garrison Access . | . . . . . . . . . . . . . . Data Cores Recovered . | . . . . . . . . . . . . . . Used . | . . . . . . . . . . . . . . Hacking Detections 44 | . 4 . . 1 4 6 10 2 5 2 5 4 1 Full Trace Events 1 | . . . . . . . 1 . . . . . . Feedback Events . | . . . . . . . . . . . . . . Feedback Blocked . | . . . . . . . . . . . . . . Robot Schematics Acquired . | . . . . . . . . . . . . . . Robots Built . | . . . . . . . . . . . . . . Matter . | . . . . . . . . . . . . . . Time . | . . . . . . . . . . . . . . Total Robot Build Rating . | . . . . . . . . . . . . . . Part Schematics Acquired 1 | . . . . 1 . . . . . . . . . Parts Built . | . . . . . . . . . . . . . . Matter . | . . . . . . . . . . . . . . Time . | . . . . . . . . . . . . . . Total Part Build Rating . | . . . . . . . . . . . . . . Parts Repaired 1 | . . . . . 1 . . . . . . . . Time 26 | . . . . . 26 . . . . . . . . Parts Recycled . | . . . . . . . . . . . . . . Recycled Matter . | . . . . . . . . . . . . . . Retrieved Matter . | . . . . . . . . . . . . . . Retrieved Components 7 | . . . . . . 7 . . . . . . . Parts Scanalyzed . | . . . . . . . . . . . . . . Part Schematics Acquired . | . . . . . . . . . . . . . . Parts Damaged . | . . . . . . . . . . . . . . Bothacking | -11 -10 -10 -10 -9 -8 -8 -7 -6 -5 -4 -3 -2 -1 ------------ Run | Scr Mat Min Exi Min Mat Sto Fac Fac Fac Fac Res Res Acc Used RIF Installer . | . . . . . . . . . . . . . . Robots Hacked . | . . . . . . . . . . . . . . Non-combat . | . . . . . . . . . . . . . . Combat . | . . . . . . . . . . . . . . Robot Hacks Applied . | . . . . . . . . . . . . . . Relay Couplers Released 4 | . . . . . . . . . . . 4 . . Programmers 4 | . . . . . . . . . . . 4 . . Robots Rewired . | . . . . . . . . . . . . . . Allies Hacked . | . . . . . . . . . . . . . . Hacks Repelled . | . . . . . . . . . . . . . . Allies | -11 -10 -10 -10 -9 -8 -8 -7 -6 -5 -4 -3 -2 -1 -------- Run | Scr Mat Min Exi Min Mat Sto Fac Fac Fac Fac Res Res Acc Total Allies 3 | . . . . . . 2 . . . . . 1 . Largest Group 2 | . . . . . . 2 . . . . . 1 . Highest-Rated Group 62 | . . . . . . 62 . . . . . 26 . Highest-Rated Ally 31 | . . . . . . 31 . . . . . 26 . Total Orders 31 | . . . . . 6 1 8 8 5 2 1 . . FOLLOW 2 | . . . . . . . . 1 1 . . . . EXPLORE 20 | . . . . . 3 1 4 5 4 2 1 . . RETURN 9 | . . . . . 3 . 4 2 . . . . . Ally Attacks 19 | . . . . . 2 17 . . . . . . . Total Damage 147 | . . . . . . 147 . . . . . . . Kills 2 | . . . . . . 2 . . . . . . . Allies Corrupted 2 | . . . . . . 1 . . . 1 . . . Allies Melted . | . . . . . . . . . . . . . . Intel | -11 -10 -10 -10 -9 -8 -8 -7 -6 -5 -4 -3 -2 -1 ------- Run | Scr Mat Min Exi Min Mat Sto Fac Fac Fac Fac Res Res Acc Robot Analysis Total 6 | . 2 . . . 2 . 2 . . . . . . Derelict Logs Recovered . | . . . . . . . . . . . . . . Drone Launches 36 | . . . . . 5 14 6 6 2 2 1 . . Drone Recoveries 13 | . . . . . 3 2 4 2 1 1 . . . Exploration | -11 -10 -10 -10 -9 -8 -8 -7 -6 -5 -4 -3 -2 -1 ------------- Run | Scr Mat Min Exi Min Mat Sto Fac Fac Fac Fac Res Res Acc Turns Passed 12683 | 114 663 293 473 286 918 1395 1236 533 872 1275 2770 1429 426 Spaces Moved 6945 | 70 383 195 274 83 518 654 719 401 532 698 1258 738 422 Core 442 | 4 . . . . . . . . . . . 59 379 Treads 2147 | . . . . . . . . . . 518 1258 371 . Legs 2784 | 66 383 195 274 83 518 654 303 . . . . 308 . Wheels 1572 | . . . . . . . 416 401 532 180 . . 43 Hover . | . . . . . . . . . . . . . . Flight . | . . . . . . . . . . . . . . Fastest Speed 50 | 50 120 150 150 180 150 150 120 120 120 130 160 50 50 Average Speed 143 | 116 132 150 171 180 150 150 147 120 124 152 162 149 67 Slowest Speed 1950 | 120 150 150 180 180 150 150 210 120 130 160 180 1950 200 Overloaded Moves . | . . . . . . . . . . . . . . Propulsion Burnouts . | . . . . . . . . . . . . . . Robots Hopped . | . . . . . . . . . . . . . . Cave-ins Triggered . | . . . . . . . . . . . . . . Exploration Rate (%) 33 | 4 53 33 65 18 53 76 22 23 26 32 31 21 13 Regions Visited 13 Branch Regions 4 Pre-discovered Areas 1 | . . . 1 . . . . . . . . . . Known Exits Taken 2 | . . . . . 1 1 . . . . . . . Unknown Exits Taken 11 | 1 1 1 1 1 . . 1 1 1 1 1 1 . Scrap Searched . | . . . . . . . . . . . . . . Spaces Dug 15 | . . . . . . . . . 2 1 9 3 . Terrain Destroyed 456 | . . . . . 58 28 . . 9 60 117 184 . Melee . | . . . . . . . . . . . . . . Projectile 91 | . . . . . . 1 . . 4 11 48 27 . AOE 365 | . . . . . 58 27 . . 5 49 69 157 . Terrain Rammed . | . . . . . . . . . . . . . . Walls Destroyed . | . . . . . . . . . . . . . . Machines Disabled . | . . . . . . . . . . . . . . Actions | -11 -10 -10 -10 -9 -8 -8 -7 -6 -5 -4 -3 -2 -1 --------- Run | Scr Mat Min Exi Min Mat Sto Fac Fac Fac Fac Res Res Acc Total 8938 | 95 480 197 280 188 626 999 874 436 700 853 1731 949 530 Wait 962 | 4 34 . 1 75 36 232 96 5 100 59 233 36 51 Move 6932 | 69 382 194 273 82 517 653 718 400 531 697 1257 737 422 Hop . | . . . . . . . . . . . . . . Pick Up 135 | 9 12 1 1 3 11 14 11 5 4 10 27 23 4 Fast Attach 119 | 1 4 . 1 1 7 12 6 6 6 17 26 19 13 Attach 83 | 5 2 . . 1 6 2 3 2 5 4 17 30 6 Detach 8 | . 1 . . . 1 1 2 . . . . 1 2 Swap 96 | . 7 . 1 3 12 14 8 . 10 10 20 11 . Drop 173 | . 8 2 3 6 17 28 18 8 10 15 39 19 . Fire 419 | 7 30 . . 17 19 43 12 8 34 41 111 73 24 Melee . | . . . . . . . . . . . . . . Ram 3 | . . . . . . . . . . . . . 3 Kick . | . . . . . . . . . . . . . . Crush 1 | . . . . . . . . . . . 1 . . Escape Stasis 5 | . . . . . . . . . . . . . 5 Rewire . | . . . . . . . . . . . . . . Trap . | . . . . . . . . . . . . . . Miscellaneous 2 | . . . . . . . . 2 . . . . . Route ------- -11/Scrapyard -10/Materials (discovered 2 exits: [*Mat] / *Min) -10/Mines -10/Exiles -9/Mines -8/Materials (discovered 3 exits: *Fac / *Sto x2) -8/Storage -7/Factory (discovered 3 exits: *Fac / Low x2) -6/Factory (discovered 3 exits: *Fac / *Low x2) -5/Factory (discovered 3 exits: *Fac / *Upp x2) -4/Factory -3/Research (discovered 2 exits: *Res x2) -2/Research -1/Access History --------- Turn | Location | Event 23 | -11/Scrapyard | Discovered new exit (range 16) 115 | -11/Scrapyard | Entered Materials 310 | -10/Materials | Build established: Mutant 418 | -10/Materials | Discovered new exit (range 6) 569 | -10/Materials | Discovered new exit (range 8) 778 | -10/Materials | Entered Mines 785 | -10/Mines | Found the Drone Emporium 795 | -10/Mines | Found Prototype Device 909 | -10/Mines | Deemed a non-threat by the Exiles lab entrance 909 | -10/Mines | Discovered new exit (range 5) 1071 | -10/Mines | Entered Exiles 1112 | -10/Exiles | Met 8R-AWN 1136 | -10/Exiles | Met EX-HEX 1252 | -10/Exiles | Met EX-BIN 1275 | -10/Exiles | Aligned with FarCom system 1277 | -10/Exiles | Given EX-Vault access code 1318 | -10/Exiles | Opened EX-Vault 1333 | -10/Exiles | Found Superbattery 1374 | -10/Exiles | Warned to stay clear of 0b10 Research branches 1393 | -10/Exiles | Exiles lab attacked by MAIN.C 1433 | -10/Exiles | Learned location of Zion (-6) 1523 | -10/Exiles | Discovered new exit (range 14) 1544 | -10/Exiles | Left Exiles lab with Superbattery 1544 | -10/Exiles | Entered Mines 1573 | -9/Mines | Found a damaged Exp. Sensor Array with a note attached 1580 | -9/Mines | Found Prototype Device 1580 | -9/Mines | Identified Exp. Sensor Array 1642 | -9/Mines | Excavation squad dispatched 1642 | -9/Mines | A large section of the Mines collapsed 1790 | -9/Mines | Discovered new exit (range 6) 1802 | -9/Mines | Met a Derelict who couldn't figure out how to use a Trap Extractor 1809 | -9/Mines | Core integrity fell below 50% 1830 | -9/Mines | Entered Materials 1830 | -8/Materials | Evolved 4 slots: Propulsion x1, Utility x2, Weapon x1 1831 | -8/Materials | Identified Bomb Drone Bay 2114 | -8/Materials | Repaired Aluminum Leg 2382 | -8/Materials | Identified exit to Storage 2404 | -8/Materials | Build established: Scavenger-Skirmisher 2438 | -8/Materials | Discovered new exit (range 19) 2748 | -8/Materials | Entered Storage 2796 | -8/Storage | Met a pair of Derelict thieves 4008 | -8/Storage | Destroyed 7 combat bots 4037 | -8/Storage | Identified exit to Factory 4143 | -8/Storage | Entered Factory 4143 | -7/Factory | Evolved 2 slots: Propulsion x1, Utility x1 4498 | -7/Factory | Identified exit to Lower Caves 4941 | -7/Factory | Build established: Tank 5317 | -7/Factory | Discovered new exit (range 13) 5379 | -7/Factory | Entered another Factory area 5379 | -6/Factory | Evolved 2 slots: Power x1, Utility x1 5805 | -6/Factory | Identified exit to Lower Caves 5837 | -6/Factory | Discovered new exit (range 49) 5912 | -6/Factory | Entered another Factory area 5912 | -5/Factory | Accompanied by 1 ally 5912 | -5/Factory | Evolved 2 slots: Utility x2 5971 | -5/Factory | Build established: Skirmisher 5990 | -5/Factory | Identified exit to Upper Caves 6556 | -5/Factory | Build established: Gunner 6763 | -5/Factory | Discovered new exit (range 13) 6784 | -5/Factory | Entered another Factory area 6784 | -4/Factory | Evolved 2 slots: Utility x2 7400 | -4/Factory | Build established: Scavenger-Gunner 7789 | -4/Factory | Discovered new exit (range 79) 7998 | -4/Factory | Lost 3 parts (2u1w) 8059 | -4/Factory | Entered Research 8059 | -3/Research | Evolved 2 slots: Utility x1, Weapon x1 8916 | -3/Research | Discovered new exit (range 15) 9020 | -3/Research | Found Gamma Bomb Array 9421 | -3/Research | System corruption reached 10% 9568 | -3/Research | Spotted B-86 Titan 9591 | -3/Research | Destroyed B-86 Titan 10780 | -3/Research | Lost 5 parts (2u3w) 10809 | -3/Research | First assault squad dispatched 10822 | -3/Research | Discovered new exit (range 5) 10829 | -3/Research | Entered another Research area 10829 | -2/Research | Evolved 2 slots: Utility x2 11346 | -2/Research | Found Prototype Device 11346 | -2/Research | Identified Exp. Force Field 11553 | -2/Research | Lost 4 parts (1n2u1w) 11659 | -2/Research | Lost 13 parts (2p2n4u5w) 11829 | -2/Research | First assault squad dispatched 12061 | -2/Research | System corruption reached 10% 12199 | -2/Research | Core integrity fell below 50% 12229 | -2/Research | Released all parts (9) 12251 | -2/Research | Discovered new exit (range 10) 12258 | -2/Research | Entered Access 12258 | -1/Access | Evolved 2 slots: Power x1, Propulsion x1 12260 | -1/Access | Lost 26 parts (1p7n7u11w) 12508 | -1/Access | First assault squad dispatched 12517 | -1/Access | Released all parts (3) 12548 | -1/Access | Lost 8 parts (2p4n2w) 12638 | -1/Access | Spotted B-99 Colossus 12638 | -1/Access | Spotted B-99 Colossus 12640 | -1/Access | Core integrity fell below 50% 12680 | -1/Access | Core integrity fell below 20% 12684 | -1/Access | Destroyed by S-43 Plague with Heavy Machine Gun Last Messages --------------- 12658_ Xenon Bombardment Thruster melted. 12658_ S-43 Plague destroyed. 12663_ Quantum Rifle destroyed. 12666_ Centrium Leg destroyed. 12669_ B-99 Colossus exits siege mode. 12671_ Imp. Stasis Canceller destroyed. 12672_ Centrium Leg destroyed. 12676_ System corrupted: Heat flow error (+164). 12676_ Centrium Leg destroyed. 12680_ Slammed into S-43 Plague. 12680_ S-43 Plague system corrupted by crushing effect. 12680_ Slug penetrates G-73 Enforcer. 12680_ Slug penetrates S-43 Plague. 12680_ Slug penetrates Sealed Heavy Doors. 12681_ Acquired 31 matter. 12681_ S-43 Plague system terminally corrupted. 12681_ Slammed into S-43 Plague. 12681_ Knocked back. 12681_ S-43 Plague system corrupted by crushing effect. 12681_ Slug penetrates Sealed Heavy Doors. Map ----- +----------------------------------------------------+ | ???????????????????# + # " #????? | | ???????????????????# # # """ ""#????? | | ???????????????????# # # """ ""#????? | | ???????????????????# # # " ""#????? | | ???????????????????# #####"## S#????? | | ???????????????????# # ""#????? | | ???????????????????# # ??? ""#????? | | ???????????????????# # ??? ""?????? | | ???????????????????# +????? ??????? | | ???????????????????######?# #????? ??????? | | ??????????????????????????# #?????############+ | | ??????????????????????????# ############# | | ??????????????????????????# | | ??????????????????????????# | | ??????????????????????????# |* = | | ??????????????????????????+ !%= !%! | | ??????????????????????????# ############# #### | | ??????????????????????????# ##??????????# #??? | | ???????????????????????#### ####????????# #??? | | ???????????????????????# #????????# #??? | | ???????????????????????# #????????# #??? | | ???????????????????????# gb #????????# +??? | | ???????????????????????#g g g #????????# #??? | | ???????????????????????#sBB BB #????????# #??? | | ???????????????????????#sBBggb BB #????????# #??? | | ???????????????????????#s@%[ #????????# #??? | | ???????????????????????#" """"""""#????????# #??? | | ????????????????????????"s"????????????????# #??? | | ????????????????????????"""????????????????? ???? | | ???????????????????????????????????????????? ???? | | ???????????????????????????????????????????? ???? | | ?????????????????????????????????????????????????? | | ?????????????????????????????????????????????????? | | ?????????????????????????????????????????????????? | | ?????????????????????????????????????????????????? | | ?????????????????????????????????????????????????? | | ?????????????????????????????????????????????????? | | ?????????????????????????????????????????????????? | | ?????????????????????????????????????????????????? | | ?????????????????????????????????????????????????? | | ?????????????????????????????????????????????????? | | ?????????????????????????????????????????????????? | | ?????????????????????????????????????????????????? | | ?????????????????????????????????????????????????? | | ?????????????????????????????????????????????????? | | ?????????????????????????????????????????????????? | | ?????????????????????????????????????????????????? | | ?????????????????????????????????????????????????? | | ?????????????????????????????????????????????????? | | ?????????????????????????????????????????????????? | +----------------------------------------------------+ Best States ------------- Heat Dissipation 106 Coolant Potential 80 Energy Generation 45 Energy Capacity 2440 Matter Stores 380 Matter Capacity 400 Sight Range 20 Robot Scan Range 30 Terrain Scan Range 20 Terrain Scan Density 10 Jamming Range 16 EM Shielding 3 Corruption Prevention 12 Armor Coverage 1275 Resistance: KI 25 Resistance: EM 25 Weapon Cycling 25 Phase Shifting 10 Evasion (%) 50 Targeting Accuracy 8 Target Analysis 8 Core Analysis 10 Recoil Reduction 4 Matter Filtering 30 Particle Charging 20 Stasis Canceling 2 Offensive Hacking 10 Defensive Hacking 10 Item Schematics ----------------- Lrg. Storage Unit | -9/Mines | Hacked Robot Schematics ------------------ None Fabricated ------------ Nothing Alien Tech Used ----------------- None Achievements -------------- Armchair Analyst Quick And Dirty Challenges ------------ None Game ------ Seed DerelictDamperThruster Manual? 0 Play Time 05:17:29 Cumulative 112.9 hours Start 2020.12.19 @ 16:39:02 End 2020.12.20 @ 11:50:19 Sessions 7 Manual Loads 0 Difficulty Rogue Special Mode None Game No. 34 Rogue 31 Adventurer 1 Explorer 2 Win Type - Total 0 Types 0/0/0/0/0/0/0/0/0 Lore% 35 Gallery% 47 Achievement% 35 Wizard Run 0 Options --------- ASCII 0 Keyboard 0 Movement Mouse Keybinds 0 Fullscreen 1 Font 18/SmallcapsGlow Map View 76x50 Tactical HUD 1 Map Filters NONE Filters NONE Steam 0 RUN: 576c0e78-74cb-43cc-9e9d-3e8ec01d310f